[Event "MCCT Oslo Esports Cup 2022"]
[Site "Oslo"]
[Date "2022.04.20"]
[Round "1.4"]
[White "Hansen, Eric"]
[Black "Giri, Anish"]
[Result "1/2-1/2"]
[ECO "C00"]
[WhiteElo "2606"]
[BlackElo "2773"]
[Annotator "TA"]
[PlyCount "67"]
[EventDate "2022.04.14"]
[EventType "tourn"]
[EventCountry "NOR"]
[SourceTitle "playchess.com"]
[Source "ChessBase"]
[SourceQuality "1"]
[TimeControl "1500+10"]

{[%evp 15,67,18,8,4,7,13,6,9,39,39,39,32,33,10,27,29,56,26,68,63,38,38,50,22,51,40,47,32,36,47,100,83,89,0,0,-25,-22,-22,-22,-22,-22,-22,-23,-31,0,0,0,0,0,0,0,0,0,0]} 1. e4 {[%emt 0:10:00]} e5 {[%emt 0:10:00]} 2. Nf3 {[%emt 0:00:04]} Nc6 {[%emt 0:00:01]} 3. Bb5 {[%emt 0:00:01]} Nf6 {[%emt 0:00:01]} 4. d3 {[%emt 0:00:02]} Bc5 {[%emt 0:00:02]} 5. c3 {[%emt 0:00:01]} O-O {[%emt 0:00:03]} 6. O-O {[%emt 0:00:06]} d5 {[%emt 0:00:03]} 7. Nbd2 {[%emt 0:00:26]} dxe4 {[%emt 0:00:02]} 8. dxe4 {[%emt 0:00:03]} Qe7 {[%emt 0:00:13]} 9. b4 {[%emt 0:00:11] C00: French: Unusual White 2nd moves.} Bd6 {[%emt 0:00:02]} 10. a3 {[%emt 0:00:01]} a5 {[%emt 0:00:04][%cal Ra5b4]} 11. Bb2 {[%emt 0:00:01] [#]} axb4 $146 {[%emt 0:00:03]} ({Predecessor:} 11... Be6 12. Qc2 h6 13. Rac1 Rfd8 14. Rfd1 axb4 15. cxb4 Bd7 16. Bf1 Nd4 17. Bxd4 Ba4 {½-½ (80) Nakamura,H (2736)-Ding,L (2799) Chess.com INT 2021}) 12. cxb4 {[%emt 0:00:06]} Na7 {[%emt 0:00:18]} 13. Be2 {[%emt 0:00:06]} b5 {[%emt 0:00:04]} 14. Rc1 {[%emt 0:00:28]} Bb7 {[%emt 0:00:27]} 15. Bd3 {[%emt 0:00:03]} Rfc8 {[%emt 0:01:19]} 16. Qe2 {[%emt 0:00:22]} c5 {[%emt 0:00:03]} 17. bxc5 {[%emt 0:00:07]} Bxc5 {[%emt 0:00:54]} 18. Bxe5 {[%emt 0:02:07]} Bxa3 {[%emt 0:00:34]} 19. Ra1 {[%emt 0:00:03] aiming for Bxf6.} Bb4 {[%emt 0:03:24]} 20. Bxf6 {[%emt 0:00:33]} Qxf6 {[%emt 0:00:01]} 21. e5 {[%emt 0:00:00]} Qe7 {[%emt 0:01:08]} 22. Ne4 {[%emt 0:00:18]} Bc3 {[%emt 0:00:45]} ({Black should try} 22... Nc6 $14) 23. Nxc3 {[%emt 0:03:44] &Bianco is more active.} Rxc3 {[%emt 0:00:01]} 24. Qe3 {[%emt 0:00:02]} ({Better is} 24. h4 $16) 24... Qc5 $11 {[%emt 0:02:09]} 25. Nd4 {[%emt 0:03:33]} Nc6 {[%emt 0:00:59]} 26. Rxa8+ {[%emt 0:03:57]} Bxa8 {[%emt 0:00:01]} 27. Ra1 {[%emt 0:00:33]} Bb7 {[%emt 0:00:13]} 28. Nxc6 {[%emt 0:02:07] [#] Threatens to win with Nd4.} Qxe3 {[%emt 0:02:04]} 29. fxe3 {[%emt 0:00:02] Nb4 is the strong threat.} Bxc6 {[%emt 0:00:36]} 30. Bxb5 {[%emt 0:00:09] The position is equal.} Kf8 {[%emt 0:00:03]} 31. Bxc6 {[%emt 0:00:38]} Rxc6 {[%emt 0:00:00] KR-KR} 32. Kf2 {[%emt 0:00:04]} Rc5 {[%emt 0:00:06]} 33. e6 {[%emt 0:00:04]} fxe6 {[%emt 0:00:06]} 34. Ra7 {[%emt 0:00:02] Weighted Error Value: White=0.11 (very precise) /Black=0.10 (very precise)} 1/2-1/2

[Event "MCCT Oslo Esports Cup 2022"]
[Site "Oslo"]
[Date "2022.04.20"]
[Round "2.1"]
[White "Carlsen, Magnus"]
[Black "Le, Quang Liem"]
[Result "0-1"]
[ECO "A13"]
[WhiteElo "2864"]
[BlackElo "2709"]
[Annotator "TA"]
[PlyCount "78"]
[EventDate "2022.04.14"]
[EventType "tourn"]
[EventCountry "NOR"]
[SourceTitle "playchess.com"]
[Source "ChessBase"]
[SourceQuality "1"]
[TimeControl "1500+10"]

{[%evp 12,78,12,10,5,0,0,0,10,18,35,35,35,17,43,24,35,30,44,24,36,23,43,28,45,10,3,12,22,28,29,30,35,0,8,13,48,55,68,64,67,62,73,69,65,65,58,58,60,68,66,62,93,93,108,104,108,107,107,101,94,94,98,105,105,0,0,-29985,-1768]} 1. Nf3 {[%emt 0:10:00]} d5 {[%emt 0:10:00]} 2. e3 {[%emt 0:00:52]} Nf6 {[%emt 0:00:06]} 3. c4 {[%emt 0:00:16]} e6 {[%emt 0:00:07]} 4. Nc3 {[%emt 0:00:04]} Be7 {[%emt 0:00:10]} 5. b3 {[%emt 0:00:06]} O-O {[%emt 0:00:06]} 6. Bb2 {[%emt 0:00:04]} c5 {[%emt 0:00:04]} 7. d4 {[%emt 0:00:10]} cxd4 {[%emt 0:00:14] A13: English Opening: 1...e6.} 8. Nxd4 {[%emt 0:00:04]} dxc4 $5 {[%emt 0:01:23][%mdl 4] Exploring less charted territory.} 9. Bxc4 {[%emt 0:00:09]} Bd7 {[%emt 0:00:02] The position is equal.} 10. O-O {[%emt 0:01:26]} Nc6 {[%emt 0:00:03]} 11. Nf3 {[%emt 0:00:04]} a6 {[%emt 0:00:23] [#]} 12. Qb1 $146 {[%emt 0:00:12]} ({Predecessor:} 12. Qe2 Qa5 13. Rfd1 Rfd8 14. Bd3 Nb4 15. Bb1 Bc6 16. Nd4 Be8 17. a3 Nbd5 18. Nxd5 Qxd5 {0-1 (60) Khademalsharieh,S (2494)-Ushenina,A (2416) Chess.com INT 2020}) 12... b5 {[%emt 0:00:36]} 13. Be2 {[%emt 0:00:03]} h6 {[%emt 0:00:50]} 14. Rd1 {[%emt 0:00:59]} Qb6 {[%emt 0:00:16]} 15. a4 {[%emt 0:00:29][%cal Ra4b5]} b4 {[%emt 0:02:33]} 16. Ne4 {[%emt 0:00:02]} Nd5 {[%emt 0:00:01]} 17. Bc4 {[%emt 0:00:03]} Rfd8 {[%emt 0:00:21]} 18. Bxd5 {[%emt 0:01:20]} exd5 {[%emt 0:00:00]} 19. Rxd5 {[%emt 0:00:02][%cal Ob2g7]} Be6 {[%emt 0:00:13]} 20. Rxd8+ {[%emt 0:01:21]} Rxd8 {[%emt 0:00:00]} 21. Ned2 {[%emt 0:00:07]} Qc5 {[%emt 0:02:36]} 22. Qd1 {[%emt 0:00:42]} Qd5 $1 {[%emt 0:01:57]} 23. Rc1 {[%emt 0:01:44]} Bg4 {[%emt 0:03:08] [#] Threatens to win with ...Bxf3. A strong pair of Bishops.} 24. Qc2 {[%emt 0:00:18]} Bxf3 {[%emt 0:00:02]} 25. Nxf3 {[%emt 0:00:02]} Na5 {[%emt 0:00:02]} 26. Nd4 {[%emt 0:00:01]} Bf6 {[%emt 0:00:02][%cal Oa5b3]} 27. Rb1 {[%emt 0:00:05]} Bxd4 {[%emt 0:01:56]} 28. Bxd4 {[%emt 0:00:03]} Nc6 {[%emt 0:00:02]} 29. Rd1 {[%emt 0:00:08]} Na5 {[%emt 0:00:27]} 30. Rd3 {[%emt 0:00:02]} Qf5 {[%emt 0:00:19]} 31. h3 {[%emt 0:00:16]} Rc8 {[%emt 0:00:03]} 32. Qd1 {[%emt 0:00:14]} Rc1 {[%emt 0:01:20]} 33. Qxc1 {[%emt 0:00:03]} Qxd3 {[%emt 0:00:01]} 34. Qc8+ {[%emt 0:03:33]} Kh7 {[%emt 0:00:02]} 35. Qf8 {[%emt 0:00:00][%csl Gd4,LRb4,LRf7,LRg7][%cal Rf8g7]} f6 {[%emt 0:00:01]} 36. Qxb4 {[%emt 0:00:37]} Nxb3 {[%emt 0:00:06] [#]} 37. Bc3 $1 {[%emt 0:00:04]} Nc1 {[%emt 0:00:21] ...Ne2+ is the strong threat.} 38. Kh2 {[%emt 0:00:04]} (38. Bd2 $16) 38... Na2 $11 {[%emt 0:00:10][%csl LRb4,LRc3]} 39. Qe4+ {[%emt 0:00:12][%mdl 8192]} Qxe4 {[%emt 0:00:03] Weighted Error Value: White=0.29 (precise) /Black=0.06 (flawless)} 0-1

[Event "MCCT Oslo Esports Cup 2022"]
[Site "Oslo"]
[Date "2022.04.20"]
[Round "2.1"]
[White "Duda, Jan-Krzysztof"]
[Black "Giri, Anish"]
[Result "1/2-1/2"]
[ECO "D00"]
[WhiteElo "2750"]
[BlackElo "2773"]
[Annotator "TA"]
[PlyCount "127"]
[EventDate "2022.04.14"]
[EventType "tourn"]
[EventCountry "NOR"]
[SourceTitle "playchess.com"]
[Source "ChessBase"]
[SourceQuality "1"]
[TimeControl "1500+10"]

{[%evp 12,127,2,0,-3,0,-13,-12,-16,-25,0,-25,-25,-23,-24,-14,-22,-30,-32,-47,-9,-31,-22,-43,-49,-50,-60,-48,-40,-43,-24,-40,-37,-25,-33,-23,-23,-30,-32,-25,-43,-33,-10,-35,0,-33,-26,-72,-62,-71,-46,-53,-19,-31,-26,-28,0,-44,0,0,0,-6,0,0,0,0,0,0,34,33,50,64,52,51,40,8,8,8,9,0,8,8,8,8,8,8,8,8,8,8,8,8,8,8,8,8,8,8,8,8,8,8,8,8,8,8,8,8,8,8,8,8,8,8,8,8,8,8]} 1. d4 {[%emt 0:10:00]} Nf6 {[%emt 0:10:00]} 2. Nf3 {[%emt 0:00:05]} g6 {[%emt 0:00:02]} 3. Nc3 {[%emt 0:00:08]} d5 {[%emt 0:00:04]} 4. Bf4 {[%emt 0:00:01]} Bg7 {[%emt 0:00:10]} 5. Nb5 {[%emt 0:00:05]} Na6 {[%emt 0:00:02]} 6. e3 {[%emt 0:00:01]} O-O {[%emt 0:00:23]} 7. h3 {[%emt 0:00:36]} Ne4 {[%emt 0:01:49]} 8. Be2 {[%emt 0:01:29]} c6 {[%emt 0:00:08]} 9. Na3 {[%emt 0:00:02]} Qb6 {[%emt 0:01:11]} 10. Qc1 {[%emt 0:00:03]} c5 {[%emt 0:00:06]} 11. c3 {[%emt 0:01:16]} Bf5 {[%emt 0:00:14]} 12. O-O {[%emt 0:00:10]} Rac8 {[%emt 0:00:01]} 13. Rd1 {[%emt 0:03:11]} Rfd8 {[%emt 0:00:05]} 14. Nc2 {[%emt 0:00:41]} Nb8 {[%emt 0:00:23]} 15. Ne5 {[%emt 0:00:31]} Nc6 {[%emt 0:00:57]} 16. Nd3 {[%emt 0:00:08]} c4 {[%emt 0:00:25]} 17. Ndb4 {[%emt 0:00:36]} a5 {[%emt 0:00:53]} 18. Nxc6 {[%emt 0:00:01]} bxc6 {[%emt 0:00:01]} 19. Bg4 {[%emt 0:00:05]} Bxg4 {[%emt 0:00:49]} 20. hxg4 {[%emt 0:00:00]} c5 {[%emt 0:00:25]} 21. f3 {[%emt 0:00:27]} Nf6 {[%emt 0:00:49]} 22. Qd2 {[%emt 0:00:13]} Nd7 {[%emt 0:00:13]} (22... Qxb2 $2 23. Rdb1 Qxa1 24. Rxa1 $18) 23. Bg3 {[%emt 0:00:50]} e5 {[%emt 0:00:21]} (23... Qxb2 $2 24. Rdb1 cxd4 25. exd4 $18 (25. Rxb2 dxc3 26. Qxd5 cxb2 $14)) 24. Rab1 {[%emt 0:00:02]} Qe6 {[%emt 0:01:27]} 25. Bh4 {[%emt 0:00:21]} Bf6 {[%emt 0:00:27]} 26. Qf2 {[%emt 0:00:08]} Kg7 {[%emt 0:01:02]} 27. Rd2 {[%emt 0:00:59]} (27. e4 {looks sharper.} Bxh4 28. Qxh4 cxd4 29. exd5 Qxd5 30. cxd4 Qb5 31. dxe5 Qxe5 32. Rd4) 27... Rb8 {[%emt 0:00:23]} 28. Bxf6+ {[%emt 0:01:04]} Qxf6 {[%emt 0:00:06]} 29. Ne1 {[%emt 0:01:50]} (29. Qg3 $11) 29... exd4 {[%emt 0:03:00]} 30. exd4 {[%emt 0:00:00]} cxd4 {[%emt 0:00:02]} 31. Rxd4 {[%emt 0:00:28]} Nf8 {[%emt 0:00:31]} 32. Rbd1 {[%emt 0:00:19]} Qb6 {[%emt 0:00:11]} 33. R4d2 {[%emt 0:00:45]} Ne6 {[%emt 0:00:59]} 34. g3 {[%emt 0:00:13]} Rd6 {[%emt 0:01:00]} 35. Ng2 {[%emt 0:01:37]} Ng5 {[%emt 0:00:08]} 36. Kf1 {[%emt 0:00:25]} Qxf2+ {[%emt 0:01:21]} 37. Rxf2 {[%emt 0:00:00]} a4 {[%emt 0:00:13]} 38. Ne3 {[%emt 0:00:18]} Rbd8 {[%emt 0:00:23]} 39. Kg2 {[%emt 0:00:09]} a3 {[%emt 0:00:21]} 40. bxa3 {[%emt 0:00:01]} d4 {[%emt 0:00:22]} 41. cxd4 {[%emt 0:01:24]} Rxd4 {[%emt 0:00:01]} 42. Rxd4 {[%emt 0:00:15]} Rxd4 {[%emt 0:00:00]} 43. Rc2 {[%emt 0:00:12]} (43. Re2 $5 {[%cal Rf3f4]}) 43... Rd3 $1 {[%emt 0:00:13]} 44. Nxc4 {[%emt 0:00:11]} Nxf3 {[%emt 0:00:00]} 45. Rc1 {[%emt 0:00:39]} Nd4 {[%emt 0:00:33]} 46. a4 {[%emt 0:00:07]} Ne2 {[%emt 0:00:02]} 47. Rc2 {[%emt 0:00:26]} Rxg3+ {[%emt 0:00:18]} 48. Kf2 {[%emt 0:00:13]} Nd4 {[%emt 0:00:20]} 49. Kxg3 {[%emt 0:00:12]} Nxc2 {[%emt 0:00:01]} 50. a3 {[%emt 0:00:21]} h5 {[%emt 0:00:05]} 51. a5 {[%emt 0:00:03]} Nd4 {[%emt 0:00:01]} 52. a6 {[%emt 0:00:07]} Nc6 {[%emt 0:00:04]} 53. gxh5 {[%emt 0:00:20]} gxh5 {[%emt 0:00:00]} 54. Nd6 {[%emt 0:00:05]} Kf6 {[%emt 0:00:09]} 55. Nb5 {[%emt 0:00:06]} Ke5 {[%emt 0:00:17]} 56. a4 {[%emt 0:00:19]} Kd5 {[%emt 0:00:06]} 57. a7 {[%emt 0:00:03]} Nxa7 $1 {[%emt 0:00:02]} 58. Nxa7 {[%emt 0:00:00]} Kc5 {[%emt 0:00:05]} 59. Nb5 {[%emt 0:00:05]} Kb4 {[%emt 0:00:03]} 60. Nc3 {[%emt 0:00:02]} f5 $1 {[%emt 0:00:01]} (60... Kxc3 61. a5 Kd3 62. a6 Ke3 63. a7 f5 64. a8=Q f4+ 65. Kg2) 61. Kh4 {[%emt 0:00:23]} f4 $1 {[%emt 0:00:01]} (61... Kxc3 {gets mated.} 62. a5 f4 63. a6 Kd3 64. a7 Ke3 65. a8=Q f3 66. Kg3) 62. Nd5+ {[%emt 0:00:00]} Kxa4 {[%emt 0:00:02]} 63. Nxf4 {[%emt 0:00:00]} Kb5 {[%emt 0:00:01]} 64. Nxh5 {[%emt 0:00:00]} 1/2-1/2

[Event "MCCT Oslo Esports Cup 2022"]
[Site "Oslo"]
[Date "2022.04.20"]
[Round "2.1"]
[White "Praggnanandhaa R"]
[Black "Mamedyarov, Shakhriyar"]
[Result "1-0"]
[ECO "D11"]
[WhiteElo "2624"]
[BlackElo "2771"]
[Annotator "TA"]
[PlyCount "63"]
[EventDate "2022.04.14"]
[EventType "tourn"]
[EventCountry "NOR"]
[SourceTitle "playchess.com"]
[Source "ChessBase"]
[SourceQuality "1"]
[TimeControl "1500+10"]

{[%evp 11,63,4,28,9,12,20,8,6,10,7,16,10,62,8,18,13,34,27,27,19,25,15,19,0,0,0,-11,-46,-27,-50,-40,-82,-89,-208,-16,-17,-17,-49,60,72,442,445,917,896,883,823,1091,1062,29981,29978,29982,29983,29983,29984]} 1. d4 {[%emt 0:10:00]} d5 {[%emt 0:10:00]} 2. c4 {[%emt 0:00:03]} c6 {[%emt 0:00:01]} 3. Nf3 {[%emt 0:00:02]} Nf6 {[%emt 0:00:02]} 4. e3 {[%emt 0:00:01]} Bg4 {[%emt 0:00:02]} 5. h3 {[%emt 0:00:11]} Bh5 {[%emt 0:00:02]} 6. Nc3 {[%emt 0:00:06]} e6 {[%emt 0:00:11]} 7. Qb3 {[%emt 0:00:02] D11: Slav Defence: 3 Nf3 sidelines and 3...Nf6 4 e3 Bg4.} Qc7 {[%emt 0:00:37]} 8. g4 {[%emt 0:01:18]} Bg6 {[%emt 0:00:02]} 9. Ne5 {[%emt 0:00:08] The position is equal.} Nbd7 {[%emt 0:00:30]} 10. Nxg6 {[%emt 0:00:08]} hxg6 {[%emt 0:00:00]} 11. Bg2 {[%emt 0:00:22]} g5 {[%emt 0:00:10]} (11... dxc4 $11 12. Qxc4 e5) 12. Bd2 {[%emt 0:00:10]} ({White should play} 12. cxd5 $14 cxd5 13. e4) 12... Be7 {[%emt 0:00:11]} 13. O-O-O {[%emt 0:02:48]} Nb6 {[%emt 0:01:06]} 14. cxd5 {[%emt 0:00:09]} cxd5 {[%emt 0:00:01]} 15. Kb1 {[%emt 0:00:09]} Nc4 {[%emt 0:00:48][%cal Ob7b5]} 16. Bc1 {[%emt 0:01:15] [#]} b5 $146 {[%emt 0:04:31]} ({Predecessor:} 16... Rc8 17. e4 Nxe4 18. Bxe4 dxe4 19. Nxe4 Qb6 20. Qxb6 Nxb6 21. Bxg5 Bxg5 22. Nxg5 Nd5 {½-½ (53) Bachmann,A (2626)-Ghaem Maghami,E (2562) Arlington 2015}) 17. f4 {[%emt 0:05:18]} b4 {[%emt 0:01:26]} 18. Ne2 {[%emt 0:00:16]} gxf4 {[%emt 0:02:01]} 19. Nxf4 {[%emt 0:01:42]} (19. exf4 $5 {[%cal Rf4f5]} Rb8 20. f5 $11) 19... g5 {[%emt 0:00:23]} 20. Nd3 {[%emt 0:00:30][%cal Oe3e4]} a5 {[%emt 0:00:02]} 21. Qa4+ {[%emt 0:00:48]} Kf8 {[%emt 0:00:50]} 22. h4 {[%emt 0:00:25]} (22. Rhf1 $17) 22... Nxg4 $2 {[%emt 0:00:31] Pair of Knights!} (22... Rxh4 $19 23. Rdf1 Rxh1 24. Bxh1 Qg3) 23. hxg5 $11 {[%emt 0:00:04][%cal Bh4g5,Bg5g6,Bg6f7][%mdl 32]} Kg7 {[%emt 0:00:02]} 24. g6 {[%emt 0:01:04] Black must now prevent Bh3.} Ncxe3 {[%emt 0:01:51]} (24... Ngxe3 $15 25. Rxh8 Rxh8 26. gxf7 Bf6) 25. gxf7 $1 $14 {[%emt 0:00:43] Rhg1 is the strong threat. Dancing on a razor blade.} Nxg2 $2 {[%emt 0:00:13][%mdl 8192] A mistake that costs the game.} (25... b3 $16 {is more resistant.} 26. Nc5 Bxc5 27. dxc5 Qxc5) 26. Rhg1 $18 {[%emt 0:00:04][%cal Bh1g1,Bg1g4,Bg4g6,Bg6g2][%mdl 32]} Rh2 {[%emt 0:00:28] [#]} (26... Qg3 $142 27. Qc2 Qf3 28. Qxg2 Qxg2 29. Rxg2 Kxf7 30. Rxg4 Rag8 31. Ne5+ Ke8) 27. Bf4 $1 {[%emt 0:00:29][%mdl 576] Decoy} Nxf4 {[%emt 0:00:25]} 28. Rxg4+ {[%emt 0:00:02]} Ng6 {[%emt 0:00:00]} 29. Ne5 {[%emt 0:00:18]} b3 {[%emt 0:00:48]} 30. Qxb3 {[%emt 0:00:18] White mates.} Rb8 {[%emt 0:00:01]} 31. Rxg6+ {[%emt 0:00:04]} Kh7 {[%emt 0:00:25] [#]} 32. Rg2 $1 {[%emt 0:00:13][%mdl 512] Weighted Error Value: White=0.15 (very precise) /Black=0.82} 1-0

[Event "MCCT Oslo Esports Cup 2022"]
[Site "Oslo"]
[Date "2022.04.20"]
[Round "2.1"]
[White "Hansen, Eric"]
[Black "Van Foreest, Jorden"]
[Result "0-1"]
[ECO "B13"]
[WhiteElo "2606"]
[BlackElo "2714"]
[Annotator "TA"]
[PlyCount "120"]
[EventDate "2022.04.14"]
[EventType "tourn"]
[EventCountry "NOR"]
[SourceTitle "playchess.com"]
[Source "ChessBase"]
[SourceQuality "1"]
[TimeControl "1500+10"]

{[%evp 11,120,18,11,17,12,0,5,0,13,9,8,0,0,-21,0,-39,-22,-82,-54,-70,-89,-82,-91,-147,-137,-238,-227,-228,-228,-225,-237,-230,-184,-179,-90,-134,-112,-109,-110,-155,-114,-107,-75,-108,-59,-62,0,0,0,0,0,0,11,14,21,12,35,34,41,31,46,37,49,0,51,46,56,21,62,64,62,11,15,18,47,21,26,17,14,26,40,0,1,7,2,1,1,-8,-8,-374,-369,-369,-369,-879,-877,-843,-836,-756,-361,-1724,-1580,-3898,-4090,-2648,-2239,-29974,-29975,-29976,-29977,-29976,-29970]} 1. e4 {[%emt 0:10:00]} c6 {[%emt 0:10:00]} 2. d4 {[%emt 0:00:23]} d5 {[%emt 0:00:04]} 3. exd5 {[%emt 0:00:34]} cxd5 {[%emt 0:00:05]} 4. Bd3 {[%emt 0:00:01]} Nf6 {[%emt 0:00:08]} 5. h3 {[%emt 0:00:07]} Nc6 {[%emt 0:00:48]} 6. c3 {[%emt 0:00:14]} g6 {[%emt 0:00:28]} 7. Nf3 {[%emt 0:00:02] B13: Caro-Kann: Exchange Variation and Panov-Botvinnik Attack.} Bf5 {[%emt 0:00:03]} 8. Be2 {[%emt 0:00:02] is recently more successful than 8.0-0.} Qc7 {[%emt 0:00:15]} 9. O-O {[%emt 0:00:10] The position is equal.} e6 $5 {[%emt 0:00:22][%mdl 4] A promising side line.} 10. Re1 {[%emt 0:00:51] [#]} h6 $146 {[%emt 0:00:30]} ({Predecessor:} 10... h5 11. c4 Bg7 12. Nc3 O-O 13. Nb5 Qb8 14. Bg5 Ne4 15. Be3 Rd8 16. cxd5 Rxd5 {1-0 (46) Obgolts,E (2371)-Rozum,I (2563) Khanty-Mansiysk 2020}) 11. Nbd2 {[%emt 0:00:09][%cal Bb1d2,Bd2f1,Bf1e3][%mdl 32]} (11. Bb5 {with more complications.} g5 12. Ne5 Bd6 13. Nd2) 11... Bd6 {[%emt 0:00:18]} 12. Nf1 {[%emt 0:00:36]} O-O-O {[%emt 0:00:36]} 13. Ne3 {[%emt 0:04:39]} Kb8 {[%emt 0:00:03]} 14. b4 {[%emt 0:01:09]} (14. a4 $11) 14... g5 {[%emt 0:01:13]} (14... Ne4 {looks sharper.} 15. Qb3 g5 16. Bb5 f6) 15. Nxf5 {[%emt 0:03:16]} exf5 {[%emt 0:00:00]} 16. Qd3 {[%emt 0:00:29]} Ne4 {[%emt 0:00:34]} 17. a3 {[%emt 0:00:21]} (17. a4 $142) 17... Rhg8 $17 {[%emt 0:00:59] 0x0.00018dd8005ddp-1022s more active pieces.} 18. Nd2 {[%emt 0:01:06]} (18. c4 $17) 18... g4 $1 $19 {[%emt 0:02:29]} ({Stronger than} 18... Bh2+ 19. Kf1 $15) 19. hxg4 {[%emt 0:00:12]} h5 $1 {[%emt 0:00:01]} ({Weaker is} 19... Bh2+ 20. Kf1 $14) 20. g5 {[%emt 0:01:17]} ({Not} 20. gxf5 $2 Bh2+ 21. Kf1 Rxg2 $3 {[%mdl 512]} 22. Kxg2 Rg8+ 23. Bg4 Rxg4+ 24. Kf1 Nxb4 $1 {[%mdl 512]} 25. cxb4 Rg1+ 26. Ke2 Nc3+ 27. Qxc3 Qxc3 28. Rxg1 Qxa1 $19) 20... Rxg5 {[%emt 0:00:32] Threatens to win with ...Bh2+.} 21. Nxe4 {[%emt 0:00:04] [#]} fxe4 {[%emt 0:00:50]} 22. Qh3 {[%emt 0:00:03] [#]} Bf4 {[%emt 0:00:17]} (22... Rg7 $1 $19 {Hoping for ...Rdg8.} 23. Kh1 h4) 23. Bf1 {[%emt 0:00:11]} f5 {[%emt 0:00:33]} 24. Bxf4 {[%emt 0:00:39]} Qxf4 {[%emt 0:00:03]} 25. Rad1 {[%emt 0:00:15]} Qc7 {[%emt 0:02:14]} 26. Qh2 {[%emt 0:00:24]} Rg7 {[%emt 0:00:45]} 27. Re3 {[%emt 0:00:07] [#]} Ne7 {[%emt 0:01:13]} (27... f4 $1 $17 {[%cal Rf4e3]} 28. Rh3 f3) 28. Rh3 $15 {[%emt 0:00:16]} Nc8 {[%emt 0:01:02]} (28... Qxh2+ $15 29. Kxh2 Rh8) 29. Rxh5 $11 {[%emt 0:01:04]} Qxh2+ {[%emt 0:00:02]} 30. Rxh2 {[%emt 0:00:01]} Nd6 {[%emt 0:00:00] Prevents c4.} 31. Rh4 {[%emt 0:00:22]} Rc7 {[%emt 0:00:11]} 32. Rc1 {[%emt 0:00:01]} a6 {[%emt 0:01:31]} 33. a4 {[%emt 0:00:05]} Ka7 {[%emt 0:00:27]} 34. g3 {[%emt 0:00:05]} Rdc8 {[%emt 0:00:18]} 35. Rh6 {[%emt 0:00:01]} Nf7 {[%emt 0:00:04]} 36. Rh5 {[%emt 0:00:09]} Nd6 {[%emt 0:00:04][%cal Oe4e3]} 37. Rh6 {[%emt 0:00:06]} (37. Bh3 $5 {[%cal Rh3f5]}) 37... Nf7 {[%emt 0:00:21]} 38. Rf6 {[%emt 0:01:16]} Ng5 {[%emt 0:00:04]} 39. Bg2 {[%emt 0:00:04]} Rf7 {[%emt 0:01:01]} 40. Rxf7 {[%emt 0:00:07]} Nxf7 $14 {[%emt 0:00:00][%mdl 4096] Endgame KRB-KRN} 41. Kf1 {[%emt 0:00:25]} (41. f3 $14) 41... a5 $11 {[%emt 0:00:13]} 42. bxa5 {[%emt 0:00:09]} Rc4 {[%emt 0:00:06]} 43. Bh3 {[%emt 0:00:12]} Nd6 {[%emt 0:00:14]} 44. Ke2 {[%emt 0:00:11]} Rxa4 {[%emt 0:00:01]} 45. Ke3 {[%emt 0:00:10]} Ra2 $1 {[%emt 0:00:05]} 46. Rf1 {[%emt 0:00:13] aiming for Kf4.} Rc2 {[%emt 0:00:54]} 47. Kf4 {[%emt 0:00:05]} Rxc3 {[%emt 0:00:01]} 48. Ke5 {[%emt 0:00:02]} Nc4+ {[%emt 0:00:09]} 49. Kxd5 {[%emt 0:00:12]} e3 $1 {[%emt 0:00:04]} 50. Ke6 $2 {[%emt 0:00:32][%mdl 8192] White does not recover from this.} (50. Bxf5 $11 {and White stays safe.} Nd2 51. Rd1 exf2 52. Bh3) 50... Nd2 $19 {[%emt 0:00:04][%mdl 64] Deflection} 51. Rh1 {[%emt 0:00:20]} exf2 {[%emt 0:00:15] White must now prevent ...Re3+.} 52. d5 $2 {[%emt 0:00:06]} (52. Rd1 Nc4 53. Rf1 Rxg3 54. Bxf5) 52... Rxg3 {[%emt 0:00:04]} 53. Rh2 {[%emt 0:00:08] [#]} Rxh3 $1 {[%emt 0:00:48][%mdl 512]} 54. Rxf2 {[%emt 0:00:01] KRN-KR} Rh6+ {[%emt 0:00:05]} (54... Re3+ $142 55. Kxf5 Nc4) 55. Ke7 $2 {[%emt 0:00:10]} (55. Kxf5 Nc4 56. Ke4) 55... Nc4 {[%emt 0:00:06] ...Ka6 is the strong threat.} 56. Rxf5 {[%emt 0:00:15]} Nxa5 {[%emt 0:00:01] Strongly threatening ...Nc4.} 57. Rf1 {[%emt 0:00:09]} Nc4 {[%emt 0:00:06] ( -> ...b5)} 58. Rc1 {[%emt 0:00:19]} b5 {[%emt 0:00:05] Black mates.} 59. Re1 {[%emt 0:00:05]} Kb6 {[%emt 0:00:05]} 60. Kd7 {[%emt 0:00:16]} Rd6+ {[%emt 0:00:03] Weighted Error Value: White=0.60/Black=0.15 (very precise)} 0-1